bitfinex-derivatives/quotes_BTCF0:USTF0_20250309
["timestamp","ask_amount","ask_price","bid_price","bid_amount"]
[1741489853337,0.14306474,86163.0,86162.0,0.00017405]
[1741489854530,0.17656474,86163.0,86162.0,0.00017405]
[1741489854730,0.17556474,86163.0,86162.0,0.00017405]
[1741489855728,0.18256474,86163.0,86162.0,0.00117405]
[1741489856530,0.18265784,86163.0,86162.0,0.00117405]
[1741489860240,0.14915784,86163.0,86162.0,0.00117405]
[1741489861333,0.08025784,86163.0,86162.0,0.07082285]
[1741489861527,0.01160994,86163.0,86162.0,0.07082285]
[1741489862140,0.01160994,86163.0,86162.0,0.14012285]
[1741489862531,0.0070931,86163.0,86162.0,0.14012285]
[1741489864535,9.31e-05,86163.0,86162.0,0.14012285]
[1741489865030,9.31e-05,86163.0,86162.0,0.13912285]
[1741489865228,9.31e-05,86163.0,86162.0,0.14012285]
[1741489866237,9.31e-05,86163.0,86162.0,0.53362015]
[1741489866547,0.10382933,86174.0,86173.0,0.0696399]
[1741489866731,0.10382933,86174.0,86173.0,0.6072799]
[1741489867240,0.00017405,86179.0,86178.0,0.0696358]
[1741489867840,0.00017405,86179.0,86178.0,0.1361358]
[1741489868536,0.00017405,86179.0,86178.0,0.2361358]
[1741489868735,0.00417405,86179.0,86178.0,0.2361358]
[1741489868935,0.10382933,86192.0,86178.0,0.1665]
[1741489869244,0.10382933,86192.0,86191.0,0.0696253]
[1741489869542,0.10842052,86192.0,86191.0,0.0696253]
[1741489870139,0.10842052,86192.0,86191.0,0.1386253]
[1741489870744,0.00459119,86192.0,86191.0,0.1386253]
[1741489871047,0.00559119,86192.0,86191.0,0.1386253]
[1741489871439,0.00459119,86192.0,86191.0,0.1386253]
[1741489871644,0.00559119,86192.0,86191.0,0.1396253]
[1741489871839,0.001,86192.0,86191.0,0.1396253]
[1741489872239,0.007,86192.0,86191.0,0.1406253]
[1741489874746,0.0766245,86192.0,86191.0,0.1406253]
[1741489874952,0.0766245,86192.0,86191.0,0.071]
[1741489875145,0.0766245,86192.0,86191.0,0.1406253]
[1741489875545,0.1442245,86192.0,86191.0,0.1406253]
[1741489875741,0.1442245,86192.0,86191.0,0.071]
[1741489877049,0.5050245,86192.0,86191.0,0.071]
[1741489879056,0.1442245,86192.0,86191.0,0.071]
[1741489880951,0.1442245,86192.0,86191.0,0.1406253]
[1741489882651,0.0766245,86192.0,86191.0,0.1406253]
[1741489883867,0.007,86192.0,86191.0,0.1406253]
[1741489884460,0.0766245,86192.0,86191.0,0.1406253]
[1741489884861,0.007,86192.0,86191.0,0.1406253]
[1741489887271,0.0766245,86192.0,86191.0,0.1406253]
[1741489887875,0.007,86192.0,86191.0,0.1406253]
[1741489888564,0.06591,86198.0,86191.0,0.07]
[1741489888768,0.1044332,86195.0,86194.0,0.0696221]
[1741489889662,0.0696245,86192.0,86191.0,0.0706249]
[1741489890175,0.0696245,86192.0,86191.0,0.0696249]
[1741489890470,0.0696253,86191.0,86190.0,0.0312]
[1741489890676,0.0696261,86190.0,86189.0,0.1020265]
[1741489890969,0.0696294,86186.0,86185.0,0.0317]
[1741489891278,0.0696294,86186.0,86185.0,0.0313]
[1741489891674,0.0348142,86188.0,86184.0,0.2434973]
[1741489891976,0.1321302,86185.0,86184.0,0.2434973]
[1741489892175,0.13669707,86185.0,86184.0,0.2434973]
[1741489892773,0.069631,86184.0,86183.0,0.00017405]
[1741489892970,0.101731,86184.0,86183.0,0.00017405]
[1741489893165,0.133831,86184.0,86183.0,0.00017405]
[1741489893575,0.13839787,86184.0,86183.0,0.00017405]
[1741489894474,0.14339787,86184.0,86183.0,0.00117405]
[1741489895070,0.14539787,86184.0,86183.0,0.00117405]
[1741489896080,0.14541347,86184.0,86183.0,0.00117405]
[1741489899380,0.14841347,86184.0,86183.0,0.00117405]
[1741489899776,0.14841347,86184.0,86183.0,0.00017405]
[1741489899984,0.14741347,86184.0,86183.0,0.00017405]
[1741489900580,0.0696334,86181.0,86180.0,0.05597405]
[1741489901377,0.07421587,86181.0,86180.0,0.05597405]
[1741489901686,0.07421587,86181.0,86180.0,0.05397405]
[1741489902681,0.07421587,86181.0,86180.0,0.02177405]
[1741489907679,0.07421587,86181.0,86180.0,0.09140825]
[1741489908492,0.07421587,86181.0,86180.0,0.02177405]
[1741489909089,0.07421587,86181.0,86180.0,0.05417405]
[1741489910688,0.43501587,86181.0,86180.0,0.05417405]
[1741489910986,0.36538247,86181.0,86170.0,0.0348208]
[1741489911188,0.4304399,86173.0,86170.0,0.0642]
[1741489912092,0.49712237,86173.0,86170.0,0.0642]
[1741489912297,0.13632237,86173.0,86170.0,0.1338422]
[1741489912598,0.13632237,86173.0,86170.0,0.0642]
[1741489913495,0.13632237,86173.0,86166.0,0.27789791]
[1741489913696,0.16702237,86173.0,86167.0,0.0308]
[1741489914288,0.18067364,86173.0,86166.0,0.27789791]
[1741489914500,0.0696447,86167.0,86166.0,0.20392679]
[1741489914796,0.43502717,86167.0,86166.0,0.16540679]
[1741489915192,0.43502717,86167.0,86156.0,0.065]
[1741489915193,0.0696528,86157.0,86156.0,0.23040679]
[1741489915391,0.4304528,86157.0,86156.0,0.23040679]
[1741489915594,0.43503527,86157.0,86156.0,0.23040679]
[1741489916190,0.43503527,86157.0,86156.0,0.16540679]
[1741489918693,0.0696593,86149.0,86148.0,0.00017405]
[1741489918887,0.0696593,86149.0,86148.0,0.03257405]
[1741489919087,0.0696593,86149.0,86148.0,0.06287405]
[1741489919389,0.07424177,86149.0,86148.0,0.06287405]
[1741489919591,0.14014177,86149.0,86148.0,0.06287405]
[1741489924503,0.1355593,86149.0,86148.0,0.06287405]
[1741489926297,0.14016716,86149.0,86148.0,0.06287405]
[1741489932200,0.50096716,86149.0,86148.0,0.06287405]
[1741489937902,0.0696762,86128.0,86121.0,0.0696812]
[1741489938102,0.0696762,86128.0,86112.0,1.21892]
[1741489938103,0.0696762,86128.0,86126.0,0.0696773]
[1741489938303,0.0696759,86129.0,86128.0,0.0696746]
[1741489939310,0.0696759,86129.0,86128.0,0.1013746]
[1741489941005,0.0696759,86129.0,86128.0,0.1320746]
[1741489941412,0.08273368,86129.0,86128.0,0.1320746]
[1741489942011,0.0348353,86135.0,86128.0,0.1320746]
[1741489942206,0.0696729,86133.0,86132.0,0.0696714]
[1741489942415,0.0696729,86133.0,86132.0,0.1004714]
[1741489942815,0.083061,86133.0,86132.0,0.1004714]
[1741489943015,0.083061,86133.0,86132.0,0.1305714]
[1741489943016,0.08770776,86133.0,86132.0,0.1305714]
[1741489948833,0.08770776,86133.0,86132.0,0.0609]
[1741489949024,0.15380776,86133.0,86132.0,0.0609]
[1741489949423,0.15380776,86133.0,86128.0,0.0317]
[1741489949424,0.08413486,86133.0,86128.0,0.0317]
[1741489949624,0.0696754,86129.0,86128.0,0.0631]
[1741489949823,0.0696754,86129.0,86128.0,0.0954]
[1741489950131,0.07432216,86129.0,86128.0,0.0954]
[1741489950724,0.07432216,86129.0,86128.0,0.0631]
[1741489951332,0.07432216,86129.0,86128.0,0.0954]
[1741489951925,0.0696803,86123.0,86122.0,0.0964]
[1741489952123,0.0696803,86123.0,86121.0,0.34615142]
[1741489952124,0.0696811,86122.0,86121.0,0.35481446]
[1741489952324,0.1339811,86122.0,86121.0,0.42021446]
[1741489952533,0.1339811,86122.0,86121.0,0.34615142]
[1741489952728,0.13862786,86122.0,86121.0,0.34615142]
[1741489954227,0.13862786,86122.0,86120.0,0.00017416]
[1741489954228,0.06894676,86122.0,86120.0,0.00017416]
[1741489954428,0.0696819,86121.0,86120.0,0.00017416]
[1741489954632,0.07432866,86121.0,86120.0,0.00017416]
[1741489954829,0.13762866,86121.0,86120.0,0.00017416]
[1741489956728,0.13762866,86121.0,86120.0,0.06537416]
[1741489957231,0.13762866,86121.0,86120.0,0.00017416]
[1741489967333,0.0348413,86120.0,86091.0,0.45037391]
[1741489967533,0.0696908,86110.0,86106.0,0.03]
[1741489967733,0.0696908,86110.0,86100.0,0.1026986]
[1741489967940,0.07433756,86110.0,86100.0,0.1026986]
[1741489968350,0.13713756,86110.0,86100.0,0.1026986]
[1741489968547,0.13713756,86110.0,86101.0,0.00017416]
[1741489968744,0.13713756,86110.0,86103.0,0.0696959]
[1741489968939,0.13713756,86110.0,86101.0,0.00017416]
[1741489969340,0.14483112,86110.0,86101.0,0.00017416]
[1741489970448,0.13713756,86110.0,86107.0,0.00860302]
[1741489973456,0.1448138,86110.0,86107.0,0.00860302]
[1741489976440,0.1448138,86110.0,86101.0,0.00017416]
[1741489978858,0.2211338,86110.0,86101.0,0.00017416]
[1741489979058,0.0696973,86102.0,86101.0,0.00017416]
[1741489979262,0.07434406,86102.0,86101.0,0.00017416]
[1741489979861,0.13854406,86102.0,86101.0,0.00017416]
[1741489980361,0.14645459,86102.0,86101.0,0.00017416]
[1741489980655,0.0897137,86102.0,86094.0,0.20845227]
[1741489980867,0.430503,86095.0,86094.0,0.19061839]
[1741489981368,0.506823,86095.0,86094.0,0.19061839]
[1741489981756,0.58358029,86095.0,86094.0,0.19061839]
[1741489983257,0.37335729,86095.0,86094.0,0.26032219]
[1741489983466,0.37335729,86095.0,86094.0,0.4305038]
[1741489983467,0.01255729,86095.0,86094.0,0.4305038]
[1741489983666,0.13719551,86097.0,86096.0,0.0697021]
[1741489984461,0.03739551,86097.0,86096.0,0.0697021]
[1741489984662,0.17149439,86103.0,86102.0,0.0696973]
[1741489984867,0.02729439,86103.0,86102.0,0.62053603]
[1741489985062,0.02729439,86103.0,86102.0,0.7569373]
[1741489985956,0.02729439,86103.0,86102.0,0.6069373]
[1741489988563,0.0696949,86105.0,86102.0,0.53724]
[1741489988764,0.0696949,86105.0,86104.0,0.0696957]
[1741489990269,0.0674463,86108.0,86107.0,0.0696932]
[1741489991067,0.069694,86106.0,86103.0,0.1460157]
[1741489991268,0.0696957,86104.0,86103.0,0.1393914]
[1741489991770,0.1358957,86104.0,86103.0,0.1412914]
[1741489994671,0.1358957,86104.0,86103.0,0.5020914]
[1741489995968,0.1358957,86104.0,86103.0,0.3608]
[1741489996380,0.1358957,86104.0,86103.0,0.4304965]
[1741489999679,0.1358957,86104.0,86103.0,0.0696965]
[1741489999870,0.1358957,86104.0,86103.0,0.4304965]
[1741490005269,0.0662,86104.0,86103.0,0.4304965]
[1741490008884,0.0662,86104.0,86103.0,0.44325012]
[1741490009274,0.0662,86104.0,86103.0,0.4304965]
[1741490011682,0.1358957,86104.0,86103.0,0.4304965]
[1741490011883,0.0662,86104.0,86103.0,0.4304965]
[1741490014389,0.07087757,86104.0,86103.0,0.4304965]
[1741490021286,0.14057327,86104.0,86103.0,0.4304965]
[1741490027920,0.07087757,86104.0,86103.0,0.4304965]
[1741490028119,0.14057327,86104.0,86103.0,0.4304965]
[1741490034624,0.1358957,86104.0,86103.0,0.4304965]
[1741490034818,0.0348485,86103.0,86100.0,0.34615142]
[1741490035018,0.4304981,86101.0,86100.0,0.34615142]
[1741490035420,0.4631981,86101.0,86100.0,0.34615142]
[1741490037916,0.46769763,86101.0,86100.0,0.34615142]
[1741490039626,0.46769763,86101.0,86095.0,0.0697025]
[1741490039627,0.0697021,86096.0,86095.0,0.0697025]
[1741490040428,0.13850163,86096.0,86095.0,0.0697025]
[1741490044730,0.1340021,86096.0,86095.0,0.0697025]
[1741490046230,0.0324,86096.0,86095.0,0.4636025]
[1741490046826,0.1021021,86096.0,86095.0,0.4636025]
[1741490048429,0.069703,86095.0,86094.0,0.0329]
[1741490048629,0.034853,86092.0,86089.0,0.27860883]
[1741490048840,0.069707,86090.0,86089.0,0.27860883]
[1741490049328,0.14557583,86090.0,86089.0,0.27860883]
[1741490050328,0.1500953,86090.0,86089.0,0.27860883]
[1741490050729,0.0697078,86089.0,86088.0,0.34615142]
[1741490050930,0.07422727,86089.0,86088.0,0.34615142]
[1741490051130,0.13742727,86089.0,86088.0,0.34615142]
[1741490054635,0.13742727,86089.0,86086.0,0.00894387]
[1741490054842,0.0697094,86087.0,86086.0,0.00894387]
[1741490055243,0.1328094,86087.0,86086.0,0.00894387]
[1741490055539,0.0697167,86078.0,86077.0,0.27828326]
[1741490056540,0.17034822,86078.0,86077.0,0.27828326]
[1741490057245,0.1658167,86078.0,86077.0,0.27828326]
[1741490059248,0.06972,86074.0,86073.0,0.1005206]
[1741490060047,0.13192,86074.0,86073.0,0.1005206]
[1741490065949,0.13192,86074.0,86073.0,0.0308]
[1741490067846,0.13192,86074.0,86073.0,0.1005208]
[1741490072345,0.13192,86074.0,86073.0,0.0308]
[1741490073151,0.0697208,86073.0,86072.0,0.00880745]
[1741490073351,0.0697256,86067.0,86066.0,0.4305264]
[1741490073551,0.0697256,86067.0,86066.0,0.3608]
[1741490074258,0.1344256,86067.0,86066.0,0.3908]
[1741490076752,0.14738175,86067.0,86066.0,0.3908]
[1741490078152,0.14738175,86067.0,86066.0,0.03]
[1741490078348,0.14738175,86067.0,86066.0,0.3908]
[1741490078654,0.1473067,86067.0,86066.0,0.3908]
[1741490083050,0.1473067,86067.0,86066.0,0.03]
[1741490083252,0.1473067,86067.0,86066.0,0.3908]
[1741490084053,0.1473067,86067.0,86066.0,0.03]
[1741490084258,0.1473067,86067.0,86066.0,0.3908]
[1741490084646,0.1473067,86067.0,86066.0,0.03]
[1741490084847,0.1473067,86067.0,86066.0,0.3908]
[1741490085853,0.1473067,86067.0,86066.0,0.03]
[1741490086060,0.1473067,86067.0,86066.0,0.3908]
[1741490088460,0.1473067,86067.0,86066.0,0.03]
[1741490088665,0.1473067,86067.0,86066.0,0.3908]
[1741490089364,0.1473067,86067.0,86066.0,0.3608]
[1741490089763,0.1473067,86067.0,86066.0,0.3941]
[1741490091754,0.1473067,86067.0,86066.0,0.3608]
[1741490091955,0.1473067,86067.0,86066.0,0.72336774]
[1741490095369,0.1473067,86067.0,86066.0,0.70942408]
[1741490096065,0.1473067,86067.0,86066.0,0.34862408]
[1741490096564,0.1473067,86067.0,86066.0,0.70942408]
[1741490100669,0.1473067,86067.0,86066.0,0.77915048]
[1741490102473,0.0647,86067.0,86066.0,0.77915048]
[1741490102771,0.3956542,86089.0,86073.0,0.0697208]
[1741490102772,0.0348581,86079.0,86073.0,0.0697208]
[1741490102975,0.17355962,86074.0,86073.0,0.4305208]
[1741490103275,0.17355962,86074.0,86073.0,0.3608]
[1741490103477,0.17355962,86074.0,86073.0,0.4305208]
[1741490103776,0.17355962,86074.0,86073.0,0.4612208]
[1741490103777,0.1861209,86074.0,86073.0,0.4612208]
[1741490103973,0.2474209,86074.0,86073.0,0.4631208]
[1741490104275,0.2474209,86074.0,86073.0,0.4612208]
[1741490105872,0.23485962,86074.0,86073.0,0.4612208]
[1741490106073,0.23485962,86074.0,86073.0,0.4631208]
[1741490106778,0.24728646,86074.0,86073.0,0.4631208]
[1741490107077,0.24728646,86074.0,86073.0,0.4612208]
[1741490108276,0.14344684,86074.0,86073.0,0.4612208]
[1741490110183,0.13102,86074.0,86073.0,0.4631208]
[1741490110777,0.0307,86074.0,86073.0,0.4631208]
[1741490111290,0.10042,86074.0,86073.0,0.4631208]
[1741490113186,0.10042,86074.0,86073.0,0.4612208]
[1741490113588,0.13042,86074.0,86073.0,0.4612208]
[1741490114487,0.0607,86074.0,86073.0,0.4631208]
[1741490114678,0.0307,86074.0,86073.0,0.4631208]
[1741490115990,0.0615,86074.0,86073.0,0.4631208]
[1741490117985,0.0307,86074.0,86073.0,0.47565847]
[1741490118187,0.0307,86074.0,86073.0,0.57565847]
[1741490119896,0.0348528,86092.0,86080.0,0.0697151]
[1741490120204,0.0316,86085.0,86080.0,0.4305151]
[1741490120595,0.0697139,86082.0,86080.0,0.4305151]
[1741490120898,0.03177427,86081.0,86080.0,0.4636151]
[1741490122994,0.06267427,86081.0,86080.0,0.4636151]
[1741490123894,0.06267427,86081.0,86080.0,0.5636151]
[1741490129889,0.13238857,86081.0,86080.0,0.5636151]
[1741490130102,0.13238857,86081.0,86080.0,0.5617151]
[1741490132392,0.13238857,86081.0,86080.0,0.90961548]
[1741490132803,0.13238857,86081.0,86080.0,0.87841548]
[1741490133406,0.13238857,86081.0,86080.0,0.77841548]
[1741490135213,0.13238857,86081.0,86080.0,0.87841548]
[1741490137209,0.06267427,86081.0,86080.0,0.5305151]
[1741490137901,0.06267427,86081.0,86080.0,0.5938151]
[1741490140204,0.09497427,86081.0,86080.0,0.5938151]
[1741490141208,0.09497427,86081.0,86080.0,0.9652563]
[1741490141409,0.0323,86093.0,86092.0,0.0697054]
[1741490141612,0.46463962,86096.0,86095.0,0.069703]
[1741490141908,0.46463962,86096.0,86095.0,0.169703]
[1741490142602,0.46463962,86096.0,86095.0,0.200203]
[1741490143307,0.10383962,86096.0,86095.0,0.21245322]
[1741490143714,0.10383962,86096.0,86095.0,0.60595052]
[1741490143913,0.10383962,86096.0,86095.0,0.65380542]
[1741490145511,0.0332,86099.0,86098.0,0.0697005]
[1741490145706,0.0332,86099.0,86098.0,0.4305005]
[1741490146018,0.03337427,86104.0,86103.0,0.0696965]
[1741490146219,0.03337427,86104.0,86103.0,0.2459765]
[1741490147114,0.03337427,86104.0,86103.0,0.2791765]
[1741490148314,0.03337427,86104.0,86103.0,0.3106765]
[1741490149520,0.00017427,86104.0,86103.0,0.5861738]
[1741490151010,0.0321,86116.0,86103.0,0.5513252]
[1741490151313,0.0317,86115.0,86114.0,0.0696876]
[1741490151619,0.0317,86115.0,86114.0,0.6067676]
[1741490154219,0.0634,86115.0,86114.0,0.6067676]
[1741490154614,0.1330868,86115.0,86114.0,0.6067676]
[1741490155924,0.0634,86115.0,86114.0,0.6067676]
[1741490157417,0.0634,86115.0,86114.0,0.61559375]
[1741490165327,0.0634,86115.0,86114.0,0.67679375]
[1741490173227,0.0127841,86123.0,86122.0,0.0696811]
[1741490174029,0.0824644,86123.0,86122.0,0.0696811]
[1741490175344,0.0127841,86123.0,86122.0,0.0696811]
[1741490175946,0.0824644,86123.0,86122.0,0.0696811]
[1741490176941,0.1474644,86123.0,86122.0,0.0696811]
[1741490177540,0.0777841,86123.0,86122.0,0.0696811]
[1741490177745,0.06517427,86123.0,86122.0,0.0696811]
[1741490179140,0.07723601,86123.0,86122.0,0.0696811]
[1741490179340,0.14691631,86123.0,86122.0,0.0696811]
[1741490180735,0.06517427,86123.0,86122.0,0.0696811]
[1741490181246,0.06517427,86123.0,86122.0,0.79069453]
[1741490181831,0.03337427,86123.0,86122.0,0.79069453]
[1741490182040,0.10383962,86133.0,86131.0,0.0696738]
[1741490182250,0.10383962,86133.0,86132.0,0.528173]
[1741490183842,0.00383962,86133.0,86132.0,0.528173]
[1741490185047,0.00383962,86133.0,86132.0,0.54051376]
[1741490185835,0.0308,86135.0,86132.0,1.25917781]
[1741490186042,0.0308,86135.0,86134.0,0.0696714]
[1741490186638,0.0323,86139.0,86138.0,0.0696682]
[1741490186837,0.00017416,86141.0,86139.0,0.0696673]
[1741490187037,0.00017416,86141.0,86140.0,0.1015665]
[1741490187237,0.00017416,86141.0,86140.0,0.1321665]
[1741490187445,0.0328,86150.0,86140.0,0.1321665]
[1741490187446,0.00383962,86151.0,86150.0,0.0696585]
[1741490187650,0.00383962,86151.0,86150.0,0.5066985]
[1741490188147,0.07329107,86154.0,86153.0,0.069656]
[1741490190445,0.07329107,86154.0,86153.0,0.134556]
[1741490190634,0.0333,86157.0,86156.0,0.0696536]
[1741490190839,0.0637,86157.0,86156.0,0.0696536]
[1741490191041,0.0696552,86154.0,86153.0,0.0649]
[1741490191341,0.0637,86157.0,86153.0,0.101956]
[1741490191544,0.0637,86155.0,86154.0,0.1044825]
[1741490191744,0.0304,86155.0,86154.0,0.1376825]
[1741490193646,0.0311,86158.0,86157.0,0.0696528]
[1741490193847,0.0311,86158.0,86157.0,0.4304528]
[1741490194236,0.0311,86158.0,86157.0,0.4636528]
[1741490195444,0.100752,86158.0,86157.0,0.4636528]
[1741490198953,0.100752,86158.0,86157.0,0.5398528]
[1741490208157,0.0311,86158.0,86157.0,0.5398528]
[1741490208659,0.100752,86158.0,86157.0,0.5398528]
[1741490209456,0.0311,86158.0,86157.0,0.5398528]
[1741490210363,0.0964,86158.0,86157.0,0.5398528]
[1741490211761,0.0964,86158.0,86157.0,0.1790528]
[1741490211955,0.0964,86158.0,86157.0,0.5398528]
[1741490212463,0.166052,86158.0,86157.0,0.5398528]
[1741490215567,0.166052,86158.0,86157.0,0.1458528]
[1741490215761,0.166052,86158.0,86157.0,0.1026528]
[1741490216960,0.166052,86158.0,86157.0,0.44936847]
[1741490220372,0.166052,86158.0,86157.0,0.1026528]
[1741490220764,0.166052,86158.0,86157.0,0.1331528]
[1741490223667,0.166052,86158.0,86157.0,0.51479823]
[1741490226368,0.03499876,86162.0,86161.0,0.0696496]
[1741490226369,0.06982326,86162.0,86161.0,0.0696496]
[1741490226674,0.06982326,86162.0,86161.0,0.4304496]
[1741490226865,0.06982326,86162.0,86161.0,0.0696496]
[1741490227064,0.06982326,86162.0,86161.0,0.4304496]
[1741490227277,0.10182326,86162.0,86161.0,0.4929496]
[1741490227773,0.10182326,86162.0,86161.0,0.49287529]
[1741490228977,0.10182326,86162.0,86161.0,0.13207529]
[1741490231764,0.10182326,86162.0,86161.0,0.14080961]
[1741490235780,0.10182326,86162.0,86161.0,0.41932196]
[1741490239080,0.10182326,86162.0,86161.0,0.14080961]
[1741490239582,0.06982326,86162.0,86161.0,0.14080961]
[1741490239778,0.00017416,86162.0,86161.0,0.14080961]
[1741490239977,0.06982296,86162.0,86161.0,0.14080961]
[1741490242772,0.10132296,86162.0,86161.0,0.14080961]
[1741490249086,0.10132296,86162.0,86161.0,0.14088392]
[1741490256595,0.10132296,86162.0,86161.0,0.07123432]
[1741490257397,0.10132296,86162.0,86161.0,0.14088392]
[1741490259797,0.10132296,86162.0,86161.0,0.07123432]
[1741490261492,0.10132296,86162.0,86161.0,0.34983545]
[1741490263787,0.10132296,86162.0,86161.0,0.41948505]
[1741490265300,0.10132296,86162.0,86161.0,0.14088392]
[1741490265500,0.03167416,86162.0,86161.0,0.14088392]
[1741490267193,0.10132296,86162.0,86161.0,0.14088392]
[1741490269904,0.10132296,86162.0,86161.0,0.50168392]
[1741490270805,0.10132296,86162.0,86161.0,0.14088392]
[1741490272602,0.06982296,86162.0,86161.0,0.14088392]
[1741490272804,0.06982296,86162.0,86161.0,0.17398392]
[1741490276007,0.00017416,86162.0,86161.0,0.17398392]
[1741490276704,0.00017416,86162.0,86161.0,0.52212116]
[1741490277605,0.00017416,86162.0,86161.0,0.57005378]
[1741490278011,0.00017416,86162.0,86161.0,0.58209799]
[1741490278412,0.069642,86171.0,86170.0,0.0696415]
[1741490278613,0.069642,86171.0,86170.0,0.4304415]
[1741490281012,0.00017416,86179.0,86178.0,0.0696358]
[1741490281217,0.00017416,86179.0,86178.0,0.4304358]
[1741490285013,0.00017416,86179.0,86178.0,1.1610663]
[1741490285520,0.0348155,86184.0,86181.0,0.0348164]
[1741490285720,0.1044481,86184.0,86183.0,0.0696318]
[1741490285922,0.0696334,86181.0,86180.0,0.145794]
[1741490287814,0.069635,86179.0,86178.0,1.0930305]
[1741490288015,0.069635,86179.0,86178.0,1.0914305]
[1741490288213,0.069635,86179.0,86178.0,0.3608]
[1741490288419,0.132235,86179.0,86178.0,0.3608]
[1741490289217,0.132235,86179.0,86176.0,0.27758999]
[1741490289525,0.0696366,86177.0,86176.0,0.27758999]
[1741490290623,0.0696407,86172.0,86171.0,0.15300744]
[1741490290919,0.0696455,86166.0,86165.0,0.33951101]
[1741490291122,0.069652,86158.0,86157.0,0.34700445]
[1741490291720,0.430452,86158.0,86157.0,0.05454901]
[1741490291925,0.069656,86153.0,86152.0,0.23289731]
[1741490292124,0.506616,86153.0,86152.0,0.12831731]
[1741490292828,0.538016,86153.0,86152.0,0.12831731]
[1741490295323,0.688016,86153.0,86152.0,0.08342731]
[1741490295524,0.688016,86153.0,86146.0,0.45272965]
[1741490295525,0.0696609,86147.0,86146.0,0.24571202]
[1741490295714,0.4304609,86147.0,86146.0,0.24571202]
[1741490296018,0.5804609,86147.0,86137.0,0.00168]
[1741490296216,0.0696754,86129.0,86128.0,0.0658]
[1741490296524,0.0696754,86129.0,86128.0,0.07459958]
[1741490297021,0.1328754,86129.0,86128.0,0.04199958]
[1741490297217,0.1328754,86129.0,86128.0,0.0332]
[1741490297721,0.0696811,86122.0,86121.0,0.0326]
[1741490297916,0.0696811,86122.0,86121.0,0.0658]
[1741490297917,0.4304811,86122.0,86121.0,0.0658]
[1741490298114,0.4304811,86122.0,86121.0,0.0332]
[1741490298517,0.4936811,86122.0,86121.0,0.0332]
[1741490299522,0.0696819,86121.0,86120.0,0.00017406]
[1741490299717,0.11327626,86121.0,86120.0,0.00017406]
[1741490299918,0.17647626,86121.0,86120.0,0.00017406]
[1741490301032,0.25679436,86121.0,86093.0,0.034852]
[1741490301322,0.0696989,86100.0,86099.0,0.07832676]
[1741490302814,0.0696989,86100.0,86099.0,0.14222676]
[1741490304923,0.0696989,86100.0,86099.0,0.07253056]
[1741490305332,0.1000989,86100.0,86099.0,0.07253056]
[1741490305831,0.1000989,86100.0,86099.0,0.14223026]
[1741490306333,0.1309989,86100.0,86099.0,0.14223026]
[1741490306527,0.1309989,86100.0,86099.0,0.07253056]
[1741490306928,0.1309989,86100.0,86099.0,0.14223026]
[1741490307224,0.1309989,86100.0,86099.0,0.07253056]
[1741490308728,0.0613,86100.0,86091.0,0.00017417]
[1741490309031,0.0697046,86093.0,86092.0,0.0331]
[1741490309420,0.0327,86093.0,86065.0,0.3196973]
[1741490309624,0.4305159,86079.0,86072.0,0.0697214]
[1741490309825,0.0697159,86079.0,86070.0,0.0325]
[1741490310023,0.0697159,86079.0,86070.0,0.1022226]
[1741490310229,0.0697224,86071.0,86070.0,0.0325]
[1741490310428,0.0697224,86071.0,86070.0,0.1022232]
[1741490311125,0.0697224,86071.0,86070.0,0.1639232]
[1741490315837,0.0348599,86075.0,86070.0,0.1639232]
[1741490315838,0.0348599,86075.0,86072.0,0.0348605]
[1741490316039,0.0348599,86075.0,86074.0,0.06972]
[1741490316433,0.0348599,86075.0,86074.0,0.13272]
[1741490325834,0.0348599,86075.0,86074.0,0.063]
[1741490326043,0.0992599,86075.0,86074.0,0.063]
[1741490326454,0.0992599,86075.0,86074.0,0.13272]
[1741490326841,0.0992599,86075.0,86074.0,0.063]
[1741490327242,0.0992599,86075.0,86074.0,0.13272]
[1741490328646,0.0668599,86075.0,86074.0,0.13272]
[1741490329348,0.16981706,86075.0,86074.0,0.13272]
[1741490330147,0.13781706,86075.0,86074.0,0.13272]
[1741490330351,0.10295716,86075.0,86074.0,0.13272]
[1741490330551,0.17267626,86075.0,86074.0,0.13272]
[1741490330751,0.10295716,86075.0,86074.0,0.13272]
[1741490331259,0.17267626,86075.0,86074.0,0.13272]
[1741490333563,0.0697191,86075.0,86074.0,0.13272]
[1741490334666,0.0697191,86075.0,86072.0,0.0348604]
[1741490334865,0.0697191,86075.0,86073.0,0.0697208]
[1741490334866,0.1027208,86074.0,86073.0,0.0697208]
[1741490337853,0.1027208,86074.0,86073.0,0.1345208]
[1741490340961,0.15922134,86074.0,86073.0,0.1345208]
[1741490342373,0.12622134,86074.0,86073.0,0.1345208]
[1741490343164,0.05650054,86074.0,86073.0,0.1345208]
[1741490343560,0.05650054,86074.0,86073.0,0.18240979]
[1741490343865,0.00620054,86074.0,86073.0,0.18240979]
[1741490344468,0.20579327,86077.0,86076.0,0.0697183]
[1741490344666,0.07794291,86107.0,86089.0,0.0348539]
[1741490344867,0.0697001,86099.0,86095.0,0.069703]
[1741490345066,0.30827308,86097.0,86096.0,0.0697021]
[1741490345273,0.37797438,86097.0,86096.0,0.1325021]
[1741490345464,0.43987438,86097.0,86096.0,0.1325021]
[1741490347473,0.40917438,86097.0,86096.0,0.1325021]
[1741490347659,0.37797438,86097.0,86096.0,0.1325021]
[1741490348871,0.13865366,86097.0,86096.0,0.1325021]
[1741490353167,0.20835496,86097.0,86096.0,0.1325021]
[1741490353564,0.0697013,86097.0,86096.0,0.1325021]
[1741490354068,0.1339013,86097.0,86096.0,0.1325021]
[1741490357870,0.1339013,86097.0,86096.0,0.0307]
[1741490358073,0.0697038,86094.0,86093.0,0.3608]
[1741490358371,0.0697038,86094.0,86093.0,0.4305046]
[1741490358974,0.0990506,86097.0,86096.0,0.0697021]
[1741490359770,0.0990506,86097.0,86096.0,0.1014021]
[1741490361271,0.13865366,86115.0,86104.0,0.0696957]
[1741490361472,0.10388769,86106.0,86104.0,0.4304957]
[1741490362178,0.10388769,86106.0,86104.0,0.4916957]
[1741490366084,0.0696923,86109.0,86104.0,0.4916957]
[1741490366384,0.0696914,86110.0,86104.0,0.4916957]
[1741490366586,0.0625,86111.0,86104.0,0.4916957]
[1741490366884,0.00174266,86118.0,86117.0,0.0696851]
[1741490367182,0.00174266,86118.0,86117.0,0.4304851]
[1741490367382,0.06324266,86118.0,86117.0,0.4304851]
[1741490367779,0.06324266,86118.0,86117.0,0.4931851]
[1741490368891,0.10388769,86119.0,86118.0,0.0696843]
[1741490369080,0.10388769,86119.0,86118.0,0.14473308]
[1741490369387,0.0313,86125.0,86124.0,0.0696795]
[1741490369683,0.0313,86125.0,86124.0,0.4304795]
[1741490369887,0.0641,86125.0,86124.0,0.4304795]
[1741490370381,0.0641,86125.0,86124.0,0.4935795]
[1741490370587,0.1337787,86125.0,86124.0,0.4935795]